Cogmind - Beta 9.6 @@@ ROGUE MODE // 2020.05.19 @ 23:10:58 Player: RNGesus Result: Destroyed by G-47 Trooper with Particle Gun Performance ------------- Evolutions (1) 500 Regions Visited (3) 600 Robots Destroyed (37) 185 Value Destroyed (964) 964 Prototype IDs (1) 20 Alien Tech Used (0) 0 Bonus (59) 59 TOTAL SCORE: 2328 Bonus ------- Follower Combat Kills 84 Friendly Fire -25 Cogmind --------- Core Integrity 0/400 Matter 294/300 Energy 250/250 System Corruption 0% Temperature Cool (9) Movement Walking (240) Ox4 Location -9/Materials Parts ------- > --- POWER (1) -------- Ion Engine > --- PROPULSION (3) --- Light Treads Aluminum Leg Aluminum Leg > --- UTILITY (3) ------ Large Storage Unit Large Storage Unit > --- WEAPON (2) ------- Heavy Assault Rifle Heavy Assault Rifle > --- INVENTORY (16) --- Aluminum Leg Aluminum Leg Medium Storage Unit EM Pulse Gun EM Pulse Gun Advanced Beam Cannon Advanced Beam Cannon Advanced Beam Cannon Heavy Assault Rifle Improved Assault Rifle Mini Grenade Launcher Mining Laser Peak State ------------ > --- POWER ------------ Light Nuclear Core > --- PROPULSION ------- Aluminum Leg Armored Wheel > --- UTILITY ---------- Large Storage Unit Large Storage Unit Light Armor Plating > --- WEAPON ----------- Heavy Assault Rifle Improved Assault Rifle > --- INVENTORY -------- Medium Storage Unit EM Pulse Gun EM Pulse Gun Advanced Beam Cannon Heavy Assault Rifle Mini Grenade Launcher Mining Laser [Rating: 15] Favorites ----------- Power Ion Engine Engine Ion Engine Power Core Light Nuclear Core Propulsion Light Treads Treads Light Treads Leg Aluminum Leg Wheel Armored Wheel Utility Large Storage Unit Storage Large Storage Unit Protection Light Armor Plating Weapon Light Assault Rifle Energy Gun EM Pulse Gun Energy Cannon Light EM Pulse Cannon Ballistic Gun Light Assault Rifle Launcher Mini Grenade Launcher Build | -11 -10 -10 -9 ------- Run | Scr Mat Min Mat Slots Evolved 2 | . . . 2 Power . | . . . . Propulsion 1 | . . . 1 Utility 1 | . . . 1 Weapon . | . . . . Parts Attached 32 | 5 5 2 20 Power 4 | . 1 1 2 Engine 2 | . 1 . 1 Core 2 | . . 1 1 Reactor . | . . . . Propulsion 8 | 2 . . 6 Treads 3 | 2 . . 1 Leg 3 | . . . 3 Wheel 2 | . . . 2 Hover . | . . . . Flight . | . . . . Utility 7 | 1 2 . 4 Device . | . . . . Storage 6 | 1 2 . 3 Processor . | . . . . Hackware . | . . . . Protection 1 | . . . 1 Artifact . | . . . . Weapon 13 | 2 2 1 8 Energy Gun 1 | 1 . . . Energy Cannon 3 | . 1 . 2 Ballistic Gun 7 | 1 1 1 4 Ballistic Cannon . | . . . . Launcher 2 | . . . 2 Special Weapon . | . . . . Impact Weapon . | . . . . Slashing Weapon . | . . . . Piercing Weapon . | . . . . Special Melee Weapon . | . . . . Unidentified Prototypes 1 | . . . 1 Parts Lost 12 | . 2 2 8 Power 3 | . . 1 2 Propulsion 3 | . . . 3 Utility 1 | . . . 1 Weapon 5 | . 2 1 2 Highest Loss Streak 4 | . 1 2 4 Average Slot Usage (%) 75 | . 66 84 71 Engine 6 | . 7 9 1 Core 3 | . . 4 6 Treads 11 | . 14 14 5 Leg 2 | . . . 9 Wheel 1 | . . . 4 Storage 22 | . 16 28 20 Protection 1 | . . . 3 Energy Cannon 6 | . 7 9 . Ballistic Gun 18 | . 17 18 19 Naked Turns . | . . . . Heaviest Build 46 | 7 42 42 46 Greatest Support 20 | 20 20 20 20 Greatest Overweight (x) 12 | . 2 2 12 Average Overweight (x) 1 | . . 1 2 Largest Inventory Capacity 20 | 6 16 16 20 Average Capacity 13 | 4 7 16 15 Most Carried 12 | 4 6 7 12 Average Carried 6 | 2 4 6 8 Final Capacity 16 | 6 16 16 16 Final Carried 12 | 3 6 6 12 Class Distribution -------------------- 85% | Mutant 14% | Scavenger-Mutant Dominant Class ---------------- Mutant | -10/Materials Mutant | -10/Mines Mutant | -9/Materials Resources | -11 -10 -10 -9 ----------- Run | Scr Mat Min Mat Matter Collected 842 | 196 160 20 466 Remotely . | . . . . Salvage Created 1349 | . 713 9 627 Parts 69 | . 32 1 36 Haulers Intercepted 1 | . . . 1 Recyclers Shooed 3 | . 1 . 2 Parts Field Recycled . | . . . . Retrieved Matter . | . . . . Parts Self-Destructed . | . . . . Prevented . | . . . . Kills | -11 -10 -10 -9 ------- Run | Scr Mat Min Mat Combat Hostiles Destroyed 27 | . 11 1 15 Guns 19 | . 8 . 11 Cannons 3 | . 3 . . AOE 5 | . . 1 4 Classes Destroyed 10 | . 4 1 5 Worker 2 | . . . 2 Builder 1 | . . . 1 Hauler 1 | . . . 1 Recycler 3 | . 3 . . Operator 2 | . 1 . 1 Watcher 1 | . 1 . . Swarmer 6 | . . 1 5 Grunt 16 | . 11 . 5 Brawler 1 | . . . 1 Sentry 4 | . . . 4 Best Kill Streak 7 | . 4 1 7 Combat Bots Only 5 | . 3 1 5 Max Kills in Single Turn 2 | . 2 1 2 Gunslinging . | . . . . Exploded 2 | . . 1 2 Melee . | . . . . Uniques/NPCs Destroyed . | . . . . Combat | -11 -10 -10 -9 -------- Run | Scr Mat Min Mat Damage Taken 1986 | . 448 215 1323 Core 537 | . 80 45 412 Absorbed by Shields . | . . . . Core Remaining (%) 75 | 100 . 50 . Volleys Fired 119 | . 46 1 72 Largest 2 | . 2 2 2 Hottest 76 | . 76 76 56 Shots Fired 214 | . 90 2 122 Gun 179 | . 72 1 106 Cannon 32 | . 18 1 13 Launcher 3 | . . . 3 Special . | . . . . Kinetic 170 | . 63 1 106 Thermal . | . . . . Explosive 3 | . . . 3 Electromagnetic 41 | . 27 1 13 Robot Hit Streak 11 | . 8 2 11 Robot Miss Streak 3 | . 3 . 3 Penetration Max . | . . . . Secondary Targets 5 | . 1 . 4 Max Gunslinging Chain 1 | . 1 . 1 Shots Hit Robots 135 | . 55 2 78 Core Hits 59 | . 28 3 28 Critical Hits 1 | . . . 1 Critical Kills . | . . . . Critical Parts Destroyed . | . . . . Melee Attacks . | . . . . Impact . | . . . . Slashing . | . . . . Piercing . | . . . . Sneak Attacks . | . . . . Combat Hostiles . | . . . . Follow-up Attacks . | . . . . Damage Inflicted 2509 | . 814 164 1531 Guns 1437 | . 389 6 1042 Cannons 542 | . 386 20 136 Explosions 530 | . 39 138 353 Melee . | . . . . Ramming . | . . . . Kinetic 1320 | . 272 6 1042 Thermal 177 | . 39 138 . Explosive 353 | . . . 353 Electromagnetic 659 | . 503 20 136 Impact . | . . . . Slashing . | . . . . Piercing . | . . . . Highest Corruption . | . . . . Average Corruption . | . . . . Corruption Purged . | . . . . Overload Shots . | . . . . Overflow Damage 82 | . 28 27 27 Projectiles 31 | . 28 . 3 Explosions 51 | . . 27 24 Melee . | . . . . Knockbacks . | . . . . Impact . | . . . . Kinetic . | . . . . Secondary . | . . . . Self-Inflicted Damage 76 | . . 33 43 Shots 2 | . . 1 1 Rammed . | . . . . Targets Rammed . | . . . . Kicked . | . . . . Crushed . | . . . . Highest Temperature 118 | . 118 48 104 Average Temperature 33 | . 35 28 29 Received Heat Transfer 579 | . 243 . 336 Siege Activations . | . . . . Robots Corrupted 1 | . 1 . . Combat Hostiles . | . . . . Parts Fried 1 | . 1 . . Impact Corruptions . | . . . . Robots Melted . | . . . . Combat Hostiles . | . . . . Parts Melted . | . . . . Heat Transferred 200 | . 50 150 . Parts Sabotaged . | . . . . Parts Stolen . | . . . . Parts Stripped . | . . . . Power Chain Reactions 2 | . 1 1 . Missiles Intercepted . | . . . . Alert | -11 -10 -10 -9 ------- Run | Scr Mat Min Mat Peak Influence 280 | . 213 280 270 Average Influence 121 | . 115 113 148 Maximum Alert Level 1 | . 1 1 1 Low Security (%) 90 | 100 94 91 85 Level 1 9 | . 5 8 14 Level 2 . | . . . . Level 3 . | . . . . Level 4 . | . . . . Level 5 . | . . . . High Security . | . . . . Max Security . | . . . . Squads Dispatched 4 | . 2 . 2 Investigation 2 | . 1 . 1 Extermination . | . . . . Reinforcement 2 | . 1 . 1 Assault . | . . . . Garrison . | . . . . Intercept . | . . . . Construction Impeded . | . . . . Haulers Reinforced . | . . . . Stealth | -11 -10 -10 -9 --------- Run | Scr Mat Min Mat Distress Signals 4 | . 2 . 2 Communications Jammed . | . . . . Distress Signals . | . . . . Times Spotted 62 | . 20 12 30 Peak Tracking Total 6 | . 4 6 5 Tactical Retreats 4 | . . . 4 Traps | -11 -10 -10 -9 ------- Run | Scr Mat Min Mat Traps Triggered 2 | . 1 . 1 Indirectly . | . . . . Trap Hack Attempts . | . . . . Triggered . | . . . . Disarmed . | . . . . Reprogrammed . | . . . . Reused . | . . . . Traps Extracted . | . . . . Installed . | . . . . Triggered . | . . . . Machines | -11 -10 -10 -9 ---------- Run | Scr Mat Min Mat Machines Disabled 3 | . . 2 1 Max in Single Turn . | . . . . Machines Sabotaged . | . . . . Garrisons Compromised . | . . . . Overloaded Fab Kills . | . . . . Fab Network Shutdowns . | . . . . Hacking | -11 -10 -10 -9 --------- Run | Scr Mat Min Mat Machines Accessed 3 | . 2 . 1 Terminals 3 | . 2 . 1 Fabricators . | . . . . Repair Stations . | . . . . Recycling Units . | . . . . Scanalyzers . | . . . . Garrison Access . | . . . . Total Hacks 6 | . 4 . 2 Successful 3 | . 2 . 1 Failed 3 | . 2 . 1 Catastrophic . | . . . . Database Lockouts . | . . . . Manual 5 | . 3 . 2 Terminals 6 | . 4 . 2 Fabricators . | . . . . Repair Stations . | . . . . Recycling Units . | . . . . Scanalyzers . | . . . . Garrison Access . | . . . . Terminal Hacks 1 | . 1 . . Hauler Manifests 1 | . 1 . . Fabricator Hacks . | . . . . Repair Station Hacks . | . . . . Recycling Unit Hacks . | . . . . Scanalyzer . | . . . . Garrison Access Hacks . | . . . . Unauthorized Hacks 2 | . 1 . 1 Terminals 2 | . 1 . 1 Operators 2 | . 1 . 1 Fabricators . | . . . . Repair Stations . | . . . . Recycling Units . | . . . . Scanalyzers . | . . . . Garrison Access . | . . . . Data Cores Recovered . | . . . . Used . | . . . . Hacking Detections 2 | . 1 . 1 Full Trace Events 1 | . 1 . . Feedback Events . | . . . . Feedback Blocked . | . . . . Robot Schematics Acquired . | . . . . Robots Built . | . . . . Matter . | . . . . Time . | . . . . Total Robot Build Rating . | . . . . Part Schematics Acquired . | . . . . Parts Built . | . . . . Matter . | . . . . Time . | . . . . Total Part Build Rating . | . . . . Parts Repaired . | . . . . Time . | . . . . Parts Recycled . | . . . . Recycled Matter . | . . . . Retrieved Matter . | . . . . Retrieved Components . | . . . . Parts Scanalyzed . | . . . . Part Schematics Acquired . | . . . . Parts Damaged . | . . . . Bothacking | -11 -10 -10 -9 ------------ Run | Scr Mat Min Mat Used RIF Installer . | . . . . Robots Hacked . | . . . . Non-combat . | . . . . Combat . | . . . . Robot Hacks Applied . | . . . . Relay Couplers Released . | . . . . Robots Rewired . | . . . . Allies Hacked . | . . . . Hacks Repelled . | . . . . Allies | -11 -10 -10 -9 -------- Run | Scr Mat Min Mat Total Allies 4 | . . 4 . Largest Group 3 | . . 3 1 Highest-Rated Group 40 | . . 40 16 Highest-Rated Ally 31 | . . 31 16 Total Orders . | . . . . Ally Attacks 38 | . . 34 4 Total Damage 413 | . . 371 42 Kills 12 | . . 11 1 Allies Corrupted . | . . . . Allies Melted . | . . . . Intel | -11 -10 -10 -9 ------- Run | Scr Mat Min Mat Robot Analysis Total . | . . . . Derelict Logs Recovered 2 | . . 2 . Drone Launches . | . . . . Drone Recoveries . | . . . . Exploration | -11 -10 -10 -9 ------------- Run | Scr Mat Min Mat Turns Passed 2687 | 72 739 1035 841 Spaces Moved 1262 | 43 355 515 349 Core 16 | 7 . . 9 Treads 1013 | 36 355 515 107 Legs 71 | . . . 71 Wheels 162 | . . . 162 Hover . | . . . . Flight . | . . . . Fastest Speed 50 | 50 160 180 90 Average Speed 177 | 142 168 193 168 Slowest Speed 650 | 160 200 200 650 Overloaded Moves . | . . . . Propulsion Burnouts . | . . . . Robots Hopped . | . . . . Cave-ins Triggered . | . . . . Exploration Rate (%) 48 | 3 56 99 37 Regions Visited 3 Branch Regions 1 Pre-discovered Areas 1 | . . 1 . Known Exits Taken . | . . . . Unknown Exits Taken 3 | 1 1 1 . Scrap Searched 1 | . . 1 . Spaces Dug . | . . . . Terrain Destroyed 37 | . 5 6 26 Melee . | . . . . Projectile . | . . . . AOE 37 | . 5 6 26 Actions | -11 -10 -10 -9 --------- Run | Scr Mat Min Mat Total 1507 | 53 421 553 480 Wait 69 | . 7 35 27 Move 1259 | 42 354 514 349 Hop . | . . . . Pick Up 20 | 4 7 1 8 Fast Attach 19 | 4 1 1 13 Attach 9 | 1 3 1 4 Detach 4 | 1 . . 3 Swap 4 | . 1 . 3 Drop 4 | 1 2 . 1 Fire 119 | . 46 1 72 Melee . | . . . . Ram . | . . . . Kick . | . . . . Crush . | . . . . Escape Stasis . | . . . . Rewire . | . . . . Trap . | . . . . Miscellaneous . | . . . . Route ------- -11/Scrapyard -10/Materials (discovered 2 exits: *Mat / [*Min]) -10/Mines (discovered 2 exits: *Mat x2) -9/Materials (discovered 1 exit: [*Mat]) History --------- Turn | Location | Event 8 | -11/Scrapyard | Discovered new exit (range 16) 73 | -11/Scrapyard | Entered Materials 239 | -10/Materials | Discovered new exit (range 14) 307 | -10/Materials | Build established: Mutant 511 | -10/Materials | Discovered new exit (range 15) 812 | -10/Materials | Entered Mines 815 | -10/Mines | Received a Mining Laser from a helpful Derelict 816 | -10/Mines | Met a Derelict bent on vengeance 939 | -10/Mines | Learned location of Mines (-9) 1093 | -10/Mines | Assisted by bots powering up and referring to "LRC-V3" 1133 | -10/Mines | Learned Materials stockpile data 1495 | -10/Mines | Discovered new exit (range 15) 1513 | -10/Mines | Discovered new exit (range 8) 1847 | -10/Mines | Entered Materials 1847 | -9/Materials | Accompanied by 1 ally 1847 | -9/Materials | Evolved 2 slots: Propulsion x1, Utility x1 2055 | -9/Materials | Lost 3 parts (1p2w) 2213 | -9/Materials | Core integrity fell below 50% 2328 | -9/Materials | Discovered new exit (range 12) 2366 | -9/Materials | Core integrity fell below 20% 2400 | -9/Materials | Lost 4 parts (1p2n1u) 2688 | -9/Materials | Destroyed by G-47 Trooper with Particle Gun Last Messages --------------- 02395_ Acquired 41 matter. 02398_ Acquired Aluminum Leg. 02403_ Acquired 24 matter. 02427_ Acquired 12 matter. 02521_ G-34 Mercenary destroyed. 02521_ Switching to secondary target: G-34 Mercenary. 02521_ K-01 Serf collects debris. 02524_ G-34 Mercenary destroyed. 02524_ K-01 Serf collects debris. 02527_ G-34 Mercenary destroyed. 02533_ Acquired Aluminum Leg. 02538_ Acquired 39 matter. 02542_ Acquired Aluminum Leg. 02543_ Acquired 1 matter. 02547_ Acquired Ion Engine. 02563_ Destroyed Lgt. Ion Engine. 02566_ O-16 Technician destroyed. 02574_ Acquired 14 matter. 02581_ U-05 Engineer builds a Door. 02610_ Acquired 8 matter. Map ----- +----------------------------------------------------+ | ?????????????????????????????????????????????????? | | ?????????????????????????????????????????????????? | | ?????????????????????????????????????????????????? | | ?????????????????????????????????????????????????? | | ?????????????????????????????????????????????????? | | ?????????????????????????????????????????????????? | | ?????????????????????????????????????????????????? | | ?????????????????????????????????????????????????? | | ?????????????????????????????????????????????????? | | ?????????????????????????????????????????????????? | | ?????????????????????????????????????????????????? | | ?????????????????????????????????????????????????? | | ?????????????????????????????????????????????????? | | ?????????????????????????????????????????????????? | | ?????????????????????????????????????????????????? | | ????????????? ???????????????????????????????????? | | ???????????Y ??????????????????????????????????? | | ???????????" ?????????????????????????????????? | | ???????????? """"""??????????????????????????? | | ????????????? """"""??????????????????????????? | | ?????????????? """"""??????????????????????????? | | ??????????????? ??????????????????????????? | | ???????????????? o??????????????????????????? | | ????????????????? ??????????????????????????? | | ??????????????????# ##########?????????????????? | | ??????????????????# # g@ #?????????????????? | | ??????????????????# #g"" #?????????????????? | | ??????????????????+ + "T = #?????????????????? | | ??????????????????# # "" #?????????????????? | | ??????????????????# # #?????????????????? | | ??????????????????# # """ #?????????????????? | | ??????????????????# # """ #?????????????????? | | ??????????????????# # """ #?????????????????? | | ??????????????????# # #?????????????????? | | ??????????????????# ##########?????????????????? | | ??????????????????# #??????????????????????????? | | ??????????????????# #??????????????????????????? | | ??????????????????# #??????????????????????????? | | ??????????????????# #??????????????????????????? | | ??????????????????# #??????????????????????????? | | ??????????????????# #??????????????????????????? | | ??????????????????# #??????????????????????????? | | ??????????????????# #??????????????????????????? | | ??????????????????# #??????????????????????????? | | ??????????????????# #??????????????????????????? | | ??????????????????# #??????????????????????????? | | ??????????????????# #??????????????????????????? | | ??????????????????# #??????????????????????????? | | ????????? ######### ########???????????????????? | | ????????# ! #???????????????????? | +----------------------------------------------------+ Best States ------------- Heat Dissipation 28 Energy Generation 14 Energy Capacity 250 Matter Stores 300 Matter Capacity 300 Sight Range 16 Terrain Scan Density 10 Armor Coverage 150 Evasion (%) 40 Recoil Reduction 1 Item Schematics ----------------- None Robot Schematics ------------------ None Fabricated ------------ Nothing Alien Tech Used ----------------- None Achievements -------------- None Challenges ------------ None Game ------ Seed ModifiedGyrokineticAnalyzer Manual? 0 Play Time 00:17:47 Cumulative 229.9 hours Start 2020.05.18 @ 13:04:57 End 2020.05.19 @ 23:10:58 Sessions 6 Manual Loads 0 Difficulty Rogue Special Mode None Game No. 365 Rogue 365 Adventurer 0 Explorer 0 Win Type - Total 5 Types 3/0/1/1/0/0/0 Lore% 78 Gallery% 79 Achievement% 60 Wizard Run 0 Options --------- ASCII 0 Keyboard 1 Movement Numpad Keybinds 0 Fullscreen 2 Font 18/X11Bold Map View 76x50 Tactical HUD 1 Map Filters NONE Filters NONE Steam 1 RUN: d69a1002-74ba-4c61-80ee-f8dc22df69aa